fUST/lending_fUST_20250624
["ID","MTS","AMOUNT","RATE_DAILY","PERIOD"]
[367325737,1750751448237,-460.0,0.00019452,2]
[367325739,1750751448247,-460.0,0.00019452,2]
[367325741,1750751448257,-460.0,0.00019452,2]
[367325743,1750751448267,-460.0,0.00019452,2]
[367325745,1750751448277,-151.0,0.00019452,2]
[367325747,1750751448286,-460.0,0.00019452,2]
[367325749,1750751448296,-460.0,0.00019452,2]
[367325751,1750751448306,-460.0,0.00019452,2]
[367325753,1750751448316,-460.0,0.00019452,2]
[367325755,1750751448325,-460.0,0.00019452,2]
[367325757,1750751448335,-745.26,0.00019452,2]
[367325758,1750751448344,-460.0,0.00019452,2]
[367325760,1750751448354,-769.02,0.00019452,2]
[367325762,1750751448368,-460.0,0.00019452,2]
[367325764,1750751448378,-6242.8,0.00019452,2]
[367325766,1750751448387,-1078.36,0.00019452,2]
[367325768,1750751448396,-986.47,0.00019452,2]
[367325770,1750751448406,-460.0,0.00019452,2]
[367325772,1750751448415,-460.0,0.00019452,2]
[367325774,1750751448425,-2849.7,0.00019452,2]
[367325776,1750751448435,-460.0,0.00019452,2]
[367325778,1750751448444,-460.0,0.00019452,2]
[367325780,1750751448454,-871.64,0.00019452,2]
[367325782,1750751448464,-460.0,0.00019452,2]
[367325784,1750751448473,-345.11064257,0.00019452,2]
[367325786,1750751448483,-460.0,0.00019452,2]
[367325788,1750751448493,-938.8,0.00019452,2]
[367325791,1750751448504,-460.0,0.00019452,2]
[367325793,1750751448513,-460.0,0.00019452,2]
[367325795,1750751448523,-460.0,0.00019452,2]
[367325797,1750751448532,-460.0,0.00019452,2]
[367325799,1750751448543,-291.52918945,0.00019452,2]
[367325801,1750751448552,-460.0,0.00019452,2]
[367325802,1750751448562,-810.15,0.00019452,2]
[367325805,1750751448572,-460.0,0.00019452,2]
[367325807,1750751448581,-636.56,0.00019452,2]
[367325808,1750751448591,-483.510078,0.00019452,2]
[367325811,1750751448600,-919.55,0.00019452,2]
[367325813,1750751448610,-460.0,0.00019452,2]
[367325815,1750751448620,-460.0,0.00019452,2]
[367325816,1750751448629,-460.0,0.00019452,2]
[367325818,1750751448638,-483.510078,0.00019452,2]
[367325820,1750751448647,-1263.25,0.00019452,2]
[367325823,1750751448657,-1008.85,0.00019452,2]
[367325824,1750751448666,-3086.1,0.00019452,2]
[367325827,1750751448676,-460.0,0.00019452,2]
[367325829,1750751448685,-460.0,0.00019452,2]
[367325831,1750751448694,-151.0,0.000195,2]
[367325833,1750751448704,-151.0,0.000195,2]
[367325835,1750751448714,-151.0,0.00019545,2]
[367325837,1750751448723,-151.0,0.00019545,2]
[367325839,1750751448733,-151.0,0.00019562,2]
[367325841,1750751448742,-151.0,0.00019562,2]
[367325843,1750751448751,-151.0,0.00019562,2]
[367325845,1750751448760,-151.0,0.00019562,2]
[367325847,1750751448770,-772.927397,0.00019562,2]
[367325849,1750751448779,-772.927397,0.00019562,2]
[367325851,1750751448789,-440.809,0.00019575,2]
[367325853,1750751448799,-177.973,0.00019575,2]
[367325855,1750751448808,-884.70291753,0.00019575,2]
[367325857,1750751448817,-391.36907,0.00019599,2]
[367325859,1750751448827,-151.0,0.000196,2]
[367325861,1750751448836,-113057.29153514,0.00019602,2]
[367325863,1750751448845,-168.7242665,0.00019626,2]
[367325865,1750751448855,-151.0,0.000197,2]
[367325867,1750751448864,-151.0,0.000197,2]
[367325869,1750751448874,-5000.0,0.00019714,2]
[367325871,1750751448883,-25000.0,0.00019714,2]
[367325873,1750751448892,-174.797159,0.00019715,2]
[367325875,1750751448902,-448.350397,0.00019715,2]
[367325877,1750751448911,-448.350397,0.00019715,2]
[367325879,1750751448921,-460.0,0.00019726,2]
[367325880,1750751448930,-260.02312879,0.00019726,2]
[367325882,1750751448939,-460.0,0.00019726,2]
[367325884,1750751448949,-596.07,0.00019726,2]
[367325886,1750751448958,-460.0,0.00019726,2]
[367325888,1750751448967,-450.05886637,0.00019726,2]
[367325890,1750751448976,-460.0,0.00019726,2]
[367325893,1750751448986,-522.83,0.00019726,2]
[367325894,1750751448996,-460.0,0.00019726,2]
[367325896,1750751449005,-460.0,0.00019726,2]
[367325898,1750751449014,-460.0,0.00019726,2]
[367325901,1750751449024,-151.0,0.00019726,2]
[367325903,1750751449033,-463.35853572,0.00019726,2]
[367325904,1750751449043,-460.0,0.00019726,2]
[367325907,1750751449053,-151.0,0.00019726,2]
[367325919,1750751449161,-151.0,0.00019726,2]
[367325921,1750751449171,-255.75034,0.00019726,2]
[367325923,1750751449182,-255.75034,0.00019726,2]
[367325925,1750751449192,-151.0,0.00019726,2]
[367325927,1750751449201,-460.0,0.00019726,2]
[367325929,1750751449211,-177.055344,0.00019726,2]
[367325931,1750751449221,-460.0,0.00019726,2]
[367325933,1750751449231,-177.055344,0.00019726,2]
[367325934,1750751449240,-460.0,0.00019726,2]
[367325935,1750751449249,-460.0,0.00019726,2]
[367325937,1750751449258,-460.0,0.00019726,2]
[367325939,1750751449267,-460.0,0.00019726,2]
[367325941,1750751449277,-460.0,0.00019726,2]
[367325943,1750751449286,-460.0,0.00019726,2]
[367325945,1750751449296,-460.0,0.00019726,2]
[367325947,1750751449307,-608.04,0.00019726,2]
[367325948,1750751449316,-460.0,0.00019726,2]
[367325949,1750751449326,-460.0,0.00019726,2]
[367325950,1750751449335,-460.0,0.00019726,2]
[367325951,1750751449344,-460.0,0.00019726,2]
[367325952,1750751449353,-460.0,0.00019726,2]
[367325953,1750751449367,-460.0,0.00019726,2]
[367325954,1750751449377,-460.0,0.00019726,2]
[367325955,1750751449386,-460.0,0.00019726,2]
[367325956,1750751449396,-460.0,0.00019726,2]
[367325957,1750751449406,-460.0,0.00019726,2]
[367325958,1750751449416,-460.0,0.00019726,2]
[367325959,1750751449425,-460.0,0.00019726,2]
[367325960,1750751449435,-460.0,0.00019726,2]
[367325962,1750751449446,-151.0,0.00019726,2]
[367325963,1750751449456,-460.0,0.00019726,2]
[367325965,1750751449466,-460.0,0.00019726,2]
[367325967,1750751449476,-151.0,0.00019726,2]
[367325970,1750751449486,-460.0,0.00019726,2]
[367325972,1750751449495,-151.0,0.00019726,2]
[367325973,1750751449505,-467.29,0.00019726,2]
[367325976,1750751449515,-460.0,0.00019726,2]
[367325978,1750751449525,-460.0,0.00019726,2]
[367325979,1750751449534,-707.66,0.00019726,2]
[367325981,1750751449543,-460.0,0.00019726,2]
[367325983,1750751449553,-772.927397,0.00019726,2]
[367325985,1750751449563,-460.0,0.00019726,2]
[367325987,1750751449572,-772.927397,0.00019726,2]
[367325989,1750751449582,-460.0,0.00019726,2]
[367325990,1750751449591,-503.42,0.00019726,2]
[367325991,1750751449601,-460.0,0.00019726,2]
[367325992,1750751449611,-377.56,0.00019726,2]
[367325994,1750751449620,-460.0,0.00019726,2]
[367325995,1750751449630,-460.0,0.00019726,2]
[367325996,1750751449639,-460.0,0.00019726,2]
[367325998,1750751449648,-460.0,0.00019726,2]
[367326000,1750751449658,-2191.68,0.00019726,2]
[367326002,1750751449666,-460.0,0.00019726,2]
[367326003,1750751449676,-460.0,0.00019726,2]
[367326004,1750751449685,-460.0,0.00019726,2]
[367326005,1750751449694,-460.0,0.00019726,2]
[367326006,1750751449703,-460.0,0.00019726,2]
[367326007,1750751449713,-460.0,0.00019726,2]
[367326008,1750751449723,-1068.34,0.00019726,2]
[367326009,1750751449732,-460.0,0.00019726,2]
[367326010,1750751449741,-460.0,0.00019726,2]
[367326011,1750751449750,-1575.48,0.00019726,2]
[367326012,1750751449760,-460.0,0.00019726,2]
[367326013,1750751449770,-460.0,0.00019726,2]
[367326015,1750751449779,-702.5,0.00019726,2]
[367326017,1750751449788,-2847.48,0.00019726,2]
[367326019,1750751449797,-460.0,0.00019726,2]
[367326021,1750751449806,-460.0,0.00019726,2]
[367326023,1750751449815,-460.01372123,0.00019726,2]
[367326025,1750751449824,-704.08,0.00019726,2]
[367326027,1750751449834,-3352.79,0.00019726,2]
[367326029,1750751449843,-460.0,0.00019726,2]
[367326031,1750751449852,-460.0,0.00019726,2]
[367326033,1750751449861,-460.0,0.00019726,2]
[367326035,1750751449870,-460.0,0.00019726,2]
[367326037,1750751449879,-1483.3,0.00019726,2]
[367326039,1750751449888,-460.0,0.00019726,2]
[367326041,1750751449897,-460.0,0.00019726,2]
[367326043,1750751449906,-460.0,0.00019726,2]
[367326045,1750751449916,-151.0,0.00019726,2]
[367326047,1750751449926,-919.68,0.00019726,2]
[367326049,1750751449935,-673.53,0.00019726,2]
[367326051,1750751449944,-179.39934072,0.00019726,2]
[367326053,1750751449953,-460.0,0.00019726,2]
[367326055,1750751449963,-460.0,0.00019726,2]
[367326057,1750751449972,-460.0,0.00019726,2]
[367326059,1750751449981,-460.0,0.00019726,2]
[367326061,1750751449991,-620.98,0.00019726,2]
[367326063,1750751450000,-554.93,0.00019726,2]
[367326065,1750751450010,-460.0,0.00019726,2]
[367326067,1750751450019,-460.0,0.00019726,2]
[367326069,1750751450029,-460.0,0.00019726,2]
[367326071,1750751450038,-460.0,0.00019726,2]
[367326073,1750751450047,-460.0,0.00019726,2]
[367326075,1750751450056,-460.0,0.00019726,2]
[367326077,1750751450065,-460.0,0.00019726,2]
[367326079,1750751450075,-1950.98,0.00019726,2]
[367326081,1750751450084,-2104.57,0.00019726,2]
[367326083,1750751450094,-460.0,0.00019726,2]
[367326085,1750751450104,-460.0,0.00019726,2]
[367326087,1750751450113,-460.0,0.00019726,2]
[367326089,1750751450122,-460.0,0.00019726,2]
[367326091,1750751450132,-460.0,0.00019726,2]
[367326093,1750751450141,-460.0,0.00019726,2]
[367326095,1750751450151,-460.0,0.00019726,2]
[367326097,1750751450160,-2597.76,0.00019726,2]
[367326099,1750751450169,-1096.17,0.00019726,2]
[367326101,1750751450178,-529.48,0.00019726,2]
[367326103,1750751450186,-151.0,0.00019726,2]
[367326105,1750751450196,-151.0,0.00019726,2]
[367326107,1750751450205,-521.74,0.00019726,2]
[367326109,1750751450214,-3580.67,0.00019726,2]
[367326111,1750751450223,-460.0,0.00019726,2]
[367326113,1750751450233,-762.52,0.00019726,2]
[367326115,1750751450242,-460.0,0.00019726,2]
[367326117,1750751450251,-460.0,0.00019726,2]
[367326119,1750751450260,-805.61,0.00019726,2]
[367326121,1750751450269,-151.0,0.00019726,2]
[367326123,1750751450278,-460.0,0.00019726,2]
[367326125,1750751450288,-460.0,0.00019726,2]
[367326127,1750751450297,-460.0,0.00019726,2]
[367326128,1750751450307,-1055.79,0.00019726,2]
[367326131,1750751450317,-912.2,0.00019726,2]
[367326132,1750751450326,-460.0,0.00019726,2]
[367326135,1750751450336,-347.31391031,0.00019726,2]
[367326137,1750751450345,-1221.86,0.00019726,2]
[367326138,1750751450355,-460.0,0.00019726,2]
[367326140,1750751450370,-1529.85,0.00019726,2]
[367326142,1750751450379,-460.0,0.00019726,2]
[367326144,1750751450389,-460.0,0.00019726,2]
[367326146,1750751450398,-287.91233316,0.00019726,2]
[367326148,1750751450407,-151.0,0.00019726,2]
[367326150,1750751450416,-460.0,0.00019726,2]
[367326152,1750751450426,-906.98,0.00019726,2]
[367326154,1750751450435,-460.0,0.00019726,2]
[367326156,1750751450445,-2482.86,0.00019726,2]
[367326158,1750751450454,-460.0,0.00019726,2]
[367326160,1750751450464,-151.0,0.00019726,2]
[367326162,1750751450473,-460.0,0.00019726,2]
[367326164,1750751450482,-460.0,0.00019726,2]
[367326166,1750751450491,-563.70925412,0.00019726,2]
[367326168,1750751450502,-510.97,0.00019726,2]
[367326170,1750751450511,-460.0,0.00019726,2]
[367326172,1750751450520,-349.6016524,0.00019726,2]
[367326174,1750751450530,-460.0,0.00019726,2]
[367326177,1750751450540,-460.0,0.00019726,2]
[367326178,1750751450549,-745.26,0.00019726,2]
[367326180,1750751450559,-460.0,0.00019726,2]
[367326182,1750751450568,-769.02,0.00019726,2]
[367326184,1750751450578,-6242.8,0.00019726,2]
[367326186,1750751450587,-1078.36,0.00019726,2]
[367326188,1750751450596,-986.47,0.00019726,2]
[367326189,1750751450605,-460.0,0.00019726,2]
[367326190,1750751450614,-2849.7,0.00019726,2]
[367326191,1750751450623,-460.0,0.00019726,2]
[367326192,1750751450633,-460.0,0.00019726,2]
[367326193,1750751450642,-871.64,0.00019726,2]
[367326194,1750751450651,-938.8,0.00019726,2]
[367326195,1750751450660,-405.22657715,0.00019726,2]
[367326196,1750751450670,-460.0,0.00019726,2]
[367326197,1750751450679,-338.16728226,0.00019726,2]
[367326198,1750751450688,-460.0,0.00019726,2]
[367326199,1750751450698,-460.0,0.00019726,2]
[367326200,1750751450708,-460.0,0.00019726,2]
[367326201,1750751450717,-810.15,0.00019726,2]
[367326202,1750751450726,-636.56,0.00019726,2]
[367326203,1750751450735,-483.510078,0.00019726,2]
[367326204,1750751450744,-919.55,0.00019726,2]
[367326205,1750751450754,-460.0,0.00019726,2]
[367326206,1750751450763,-460.0,0.00019726,2]
[367326207,1750751450772,-460.0,0.00019726,2]
[367326208,1750751450781,-483.510078,0.00019726,2]
[367326209,1750751450793,-1263.25,0.00019726,2]
[367326210,1750751450802,-1008.85,0.00019726,2]
[367326211,1750751450811,-460.0,0.00019726,2]
[367326212,1750751450821,-3086.1,0.00019726,2]
[367326213,1750751450830,-460.0,0.00019726,2]
[367326214,1750751450839,-1466.58674084,0.00019728,2]
[367326215,1750751450849,-3067.58103766,0.00019748,2]
[367326216,1750751450858,-46565.39648649,0.000198,2]
[367326217,1750751450867,-176416.17871569,0.000198,2]
[367326218,1750751450876,-151.0,0.00019808,2]
[367326219,1750751450886,-151.0,0.00019808,2]
[367326221,1750751450895,-500.0,0.00019808,2]
[367326222,1750751450904,-151.0,0.00019808,2]
[367326224,1750751450913,-151.0,0.00019808,2]
[367326226,1750751450922,-151.0,0.00019808,2]
[367326228,1750751450932,-1296.825098,0.00019832,2]
[367326230,1750751450941,-154.02096268,0.00019835,2]
[367326232,1750751450951,-500.0,0.00019835,2]
[367326234,1750751450960,-152.6850649,0.00019835,2]
[367326236,1750751450970,-500.0,0.00019863,2]
[367326238,1750751450980,-500.0,0.0001989,2]
[367326240,1750751450990,-340.67365633,0.00019897,2]
[367326242,1750751451000,-616.0,0.00019918,2]
[367326244,1750751451009,-965.0,0.00019947,2]
[367326246,1750751451018,-654.0,0.00019947,2]
[367326248,1750751451028,-2160.0,0.00019947,2]
[367326250,1750751451037,-406.0,0.00019947,2]
[367326252,1750751451047,-406.0,0.00019947,2]
[367326254,1750751451057,-391.36907,0.00019986,2]
[367326256,1750751451066,-614.64609708,0.0001999,2]
[367326268,1750751451165,-314.2,0.0002,2]
[367326270,1750751451175,-460.0,0.0002,2]
[367326272,1750751451184,-151.0,0.0002,2]
[367326274,1750751451194,-460.0,0.0002,2]
[367326276,1750751451203,-460.0,0.0002,2]
[367326278,1750751451213,-307.77,0.0002,2]
[367326280,1750751451223,-151.0,0.0002,4]
[367326282,1750751451233,-460.0,0.0002,2]
[367326284,1750751451242,-158.341844,0.0002,2]
[367326286,1750751451251,-230.10813448,0.0002,2]
[367326288,1750751451261,-255.75034,0.0002,2]
[367326290,1750751451270,-255.75034,0.0002,2]
[367326292,1750751451279,-582.74,0.0002,2]
[367326294,1750751451288,-177.055344,0.0002,2]
[367326296,1750751451299,-460.0,0.0002,2]
[367326298,1750751451308,-177.055344,0.0002,2]
[367326300,1750751451318,-466.71896537,0.0002,2]
[367326302,1750751451327,-544.57,0.0002,2]
[367326304,1750751451336,-460.0,0.0002,2]
[367326306,1750751451346,-460.0,0.0002,2]
[367326308,1750751451356,-460.0,0.0002,2]
[367326310,1750751451369,-529.16803782,0.0002,2]
[367326312,1750751451378,-608.04,0.0002,2]
[367326314,1750751451388,-460.0,0.0002,2]
[367326316,1750751451397,-460.0,0.0002,2]
[367326318,1750751451407,-530.11,0.0002,2]
[367326320,1750751451416,-312.61376352,0.0002,2]
[367326322,1750751451425,-202.4801576,0.0002,2]
[367326324,1750751451434,-460.0,0.0002,2]
[367326326,1750751451444,-460.0,0.0002,2]
[367326328,1750751451453,-460.0,0.0002,2]
[367326330,1750751451462,-460.0,0.0002,2]
[367326332,1750751451472,-460.0,0.0002,2]
[367326334,1750751451481,-460.0,0.0002,2]
[367326336,1750751451490,-467.29,0.0002,2]
[367326338,1750751451500,-460.0,0.0002,2]
[367326340,1750751451508,-3575.0,0.0002,2]
[367326342,1750751451518,-460.0,0.0002,2]
[367326344,1750751451527,-707.66,0.0002,2]
[367326346,1750751451538,-482.23,0.0002,2]
[367326348,1750751451551,-460.0,0.0002,2]
[367326350,1750751451560,-460.0,0.0002,2]
[367326352,1750751451569,-460.0,0.0002,2]
[367326354,1750751451578,-460.0,0.0002,2]
[367326356,1750751451587,-470.43,0.0002,2]
[367326358,1750751451596,-34527.71007987,0.0002,2]
[367326360,1750751451605,-460.0,0.0002,2]
[367326362,1750751451615,-2191.68,0.0002,2]
[367326364,1750751451624,-460.0,0.0002,2]
[367326366,1750751451634,-460.0,0.0002,2]
[367326368,1750751451643,-271.61862562,0.0002,2]
[367326370,1750751451652,-460.0,0.0002,2]
[367326372,1750751451661,-460.0,0.0002,2]
[367326374,1750751451670,-1068.34,0.0002,2]
[367326376,1750751451680,-460.0,0.0002,2]
[367326378,1750751451689,-1575.48,0.0002,2]
[367326380,1750751451698,-6857.0,0.0002,2]
[367326382,1750751451707,-460.0,0.0002,2]
[367326384,1750751451717,-702.5,0.0002,2]
[367326386,1750751451726,-2847.48,0.0002,2]
[367326388,1750751451735,-704.08,0.0002,2]
[367326390,1750751451744,-3352.79,0.0002,2]
[367326392,1750751451753,-540.98323226,0.0002,2]
[367326394,1750751451762,-460.0,0.0002,2]
[367326396,1750751451771,-460.0,0.0002,2]
[367326398,1750751451780,-460.0,0.0002,2]
[367326400,1750751451791,-1483.3,0.0002,2]
[367326402,1750751451800,-460.0,0.0002,2]
[367326404,1750751451809,-460.0,0.0002,2]
[367326406,1750751451818,-460.0,0.0002,2]
[367326408,1750751451827,-151.0,0.0002,2]
[367326410,1750751451836,-919.68,0.0002,2]
[367326412,1750751451845,-673.53,0.0002,2]
[367326414,1750751451855,-460.0,0.0002,2]
[367326416,1750751451865,-460.0,0.0002,2]
[367326418,1750751451874,-620.98,0.0002,2]
[367326420,1750751451884,-460.0,0.0002,2]
[367326422,1750751451893,-448.350397,0.0002,2]
[367326424,1750751451904,-460.0,0.0002,2]
[367326426,1750751451913,-460.0,0.0002,2]
[367326428,1750751451923,-448.350397,0.0002,2]
[367326430,1750751451932,-460.0,0.0002,2]
[367326432,1750751451941,-460.0,0.0002,2]
[367326434,1750751451951,-460.0,0.0002,2]
[367326436,1750751451960,-460.0,0.0002,2]
[367326438,1750751451969,-1950.98,0.0002,2]
[367326440,1750751451979,-2104.57,0.0002,2]
[367326442,1750751451989,-460.0,0.0002,2]
[367326444,1750751451998,-460.0,0.0002,2]
[367326446,1750751452007,-460.0,0.0002,2]
[367326448,1750751452016,-460.0,0.0002,2]
[367326450,1750751452026,-460.0,0.0002,2]
[367326452,1750751452036,-460.0,0.0002,2]
[367326454,1750751452045,-2597.76,0.0002,2]
[367326456,1750751452054,-1096.17,0.0002,2]
[367326458,1750751452064,-529.48,0.0002,2]
[367326460,1750751452073,-151.0,0.0002,2]
[367326462,1750751452082,-151.0,0.0002,2]
[367326463,1750751452091,-3580.67,0.0002,2]
[367326464,1750751452100,-460.0,0.0002,2]
[367326465,1750751452114,-762.52,0.0002,2]
[367326466,1750751452126,-460.0,0.0002,2]
[367326467,1750751452135,-460.0,0.0002,2]
[367326468,1750751452144,-805.61,0.0002,2]
[367326469,1750751452153,-151.0,0.0002,2]
[367326470,1750751452162,-460.0,0.0002,2]
[367326471,1750751452171,-460.0,0.0002,2]
[367326472,1750751452180,-1055.79,0.0002,2]
[367326473,1750751452188,-912.2,0.0002,2]
[367326474,1750751452197,-460.0,0.0002,2]
[367326475,1750751452205,-1221.86,0.0002,2]
[367326476,1750751452214,-460.0,0.0002,2]
[367326477,1750751452223,-1529.85,0.0002,2]
[367326478,1750751452232,-460.0,0.0002,2]
[367326479,1750751452241,-460.0,0.0002,2]
[367326480,1750751452250,-460.0,0.0002,2]
[367326481,1750751452259,-906.98,0.0002,2]
[367326482,1750751452268,-460.0,0.0002,2]
[367326483,1750751452277,-2482.86,0.0002,2]
[367326484,1750751452287,-460.0,0.0002,2]
[367326485,1750751452297,-151.0,0.0002,2]
[367326486,1750751452306,-460.0,0.0002,2]
[367326487,1750751452315,-460.0,0.0002,2]
[367326488,1750751452324,-460.0,0.0002,2]
[367326489,1750751452333,-460.0,0.0002,2]
[367326490,1750751452342,-745.26,0.0002,2]
[367326491,1750751452350,-460.0,0.0002,2]
[367326492,1750751452360,-769.02,0.0002,2]
[367326493,1750751452372,-6242.8,0.0002,2]
[367326494,1750751452381,-986.47,0.0002,2]
[367326495,1750751452390,-1078.36,0.0002,2]
[367326496,1750751452398,-460.0,0.0002,2]
[367326497,1750751452407,-2849.7,0.0002,2]
[367326498,1750751452417,-460.0,0.0002,2]
[367326499,1750751452426,-460.0,0.0002,2]
[367326500,1750751452435,-871.64,0.0002,2]
[367326501,1750751452446,-938.8,0.0002,2]
[367326502,1750751452457,-460.0,0.0002,2]
[367326503,1750751452466,-4000.0,0.0002,4]
[367326504,1750751452476,-460.0,0.0002,2]
[367326505,1750751452486,-460.0,0.0002,2]
[367326506,1750751452495,-810.15,0.0002,2]
[367326507,1750751452505,-636.56,0.0002,2]
[367326508,1750751452515,-483.510078,0.0002,2]
[367326509,1750751452524,-919.55,0.0002,2]
[367326510,1750751452534,-460.0,0.0002,2]
[367326511,1750751452544,-460.0,0.0002,2]
[367326512,1750751452554,-483.510078,0.0002,2]
[367326513,1750751452564,-1263.25,0.0002,2]
[367326514,1750751452574,-1008.85,0.0002,2]
[367326515,1750751452583,-3086.1,0.0002,2]
[367326516,1750751452592,-460.0,0.0002,2]
[367326517,1750751452602,-3067.58103766,0.00020098,2]
[367326518,1750751452611,-500.0,0.00020164,2]
[367326519,1750751452621,-3635.0,0.00020167,2]
[367326520,1750751452630,-630.732376,0.00020187,2]
[367326521,1750751452640,-15732.09233873,0.00020199,2]
[367326522,1750751452649,-52276.31958881,0.00020199,2]
[367326523,1750751452658,-909104.9037,0.00020199,2]
[367326524,1750751452669,-151.0,0.000202,3]
[367326525,1750751452678,-151.0,0.000202,3]
[367326526,1750751452689,-3448.53842813,0.000202,2]
[367326527,1750751452698,-3448.53842809,0.000202,2]
[367326528,1750751452708,-588.0,0.00020238,2]
[367326529,1750751452719,-3448.53842809,0.00020245,2]
[367326530,1750751452728,-2774.74794439,0.0002027,2]
[367326531,1750751452738,-151.0,0.0002027,2]
[367326532,1750751452748,-460.0,0.00020273,2]
[367326533,1750751452757,-151.0,0.00020273,2]
[367326534,1750751452767,-287.22,0.00020273,2]
[367326535,1750751452776,-328.9,0.00020273,2]
[367326536,1750751452786,-345.9,0.00020273,2]
[367326537,1750751452796,-151.0,0.00020273,2]
[367326538,1750751452805,-151.0,0.00020273,2]
[367326539,1750751452814,-151.0,0.00020273,2]
[367326540,1750751452824,-460.0,0.00020273,2]
[367326541,1750751452833,-460.0,0.00020273,2]
[367326542,1750751452842,-212.24169135,0.00020273,2]
[367326543,1750751452852,-608.04,0.00020273,2]
[367326544,1750751452861,-580.44,0.00020273,2]
[367326545,1750751452870,-460.0,0.00020273,2]
[367326546,1750751452880,-460.0,0.00020273,2]
[367326547,1750751452889,-460.0,0.00020273,2]
[367326548,1750751452898,-151.0,0.00020273,2]
[367326549,1750751452908,-451.83646618,0.00020273,2]
[367326550,1750751452917,-460.0,0.00020273,2]
[367326551,1750751453015,-460.0,0.00020273,2]
[367326552,1750751453024,-595.39,0.00020273,2]
[367326553,1750751453034,-151.0,0.00020273,2]
[367326554,1750751453045,-467.29,0.00020273,2]
[367326555,1750751453053,-225.83,0.00020273,2]
[367326556,1750751453063,-497.04,0.00020273,2]
[367326557,1750751453072,-707.66,0.00020273,2]
[367326558,1750751453081,-772.927397,0.00020273,2]
[367326559,1750751453090,-772.927397,0.00020273,2]
[367326560,1750751453099,-514.41,0.00020273,2]
[367326561,1750751453110,-593.97,0.00020273,2]
[367326562,1750751453120,-507.04702956,0.00020273,2]
[367326563,1750751453129,-2191.68,0.00020273,2]
[367326564,1750751453142,-460.0,0.00020273,2]
[367326565,1750751453151,-460.0,0.00020273,2]
[367326566,1750751453161,-606.07210901,0.00020273,2]
[367326567,1750751453170,-1068.34,0.00020273,2]
[367326568,1750751453179,-1575.48,0.00020273,2]
[367326569,1750751453188,-460.0,0.00020273,2]
[367326570,1750751453197,-702.5,0.00020273,2]
[367326571,1750751453208,-2847.48,0.00020273,2]
[367326572,1750751453217,-704.08,0.00020273,2]
[367326573,1750751453227,-3352.79,0.00020273,2]
[367326574,1750751453236,-460.0,0.00020273,2]
[367326575,1750751453246,-460.0,0.00020273,2]
[367326576,1750751453256,-483.72,0.00020273,2]